fUSD/lending_fUSD_20250618
["ID","MTS","AMOUNT","RATE_DAILY","PERIOD"]
[366389839,1750228246908,-894.93,0.00016438,2]
[366389840,1750228246917,-490.0,0.00016438,2]
[366389841,1750228246928,-490.0,0.00016438,2]
[366389842,1750228246940,-160.6579939,0.00016438,2]
[366389843,1750228246950,-490.0,0.00016438,2]
[366389844,1750228246960,-490.0,0.00016438,2]
[366389845,1750228246972,-639.62,0.00016438,2]
[366389846,1750228246982,-548.35,0.00016438,2]
[366389847,1750228246992,-490.0,0.00016438,2]
[366389848,1750228247002,-1604.13,0.00016438,2]
[366389849,1750228247012,-490.0,0.00016438,2]
[366389850,1750228247022,-668.18,0.00016438,2]
[366389851,1750228247032,-151.0,0.00016438,2]
[366389852,1750228247042,-2818.65,0.00016438,2]
[366389853,1750228247051,-500.0,0.00016438,2]
[366389854,1750228247061,-165.936621,0.00016438,2]
[366389855,1750228247071,-2340.71,0.00016438,2]
[366389856,1750228247082,-490.0,0.00016438,2]
[366389857,1750228247091,-490.0,0.00016438,2]
[366389858,1750228247101,-708.31,0.00016438,2]
[366389859,1750228247111,-1354.04,0.00016438,2]
[366389860,1750228247121,-490.0,0.00016438,2]
[366389861,1750228247131,-24970.95,0.00016438,2]
[366389862,1750228247140,-1382.74,0.00016438,2]
[366389863,1750228247150,-1285.03,0.00016438,2]
[366389864,1750228247159,-1771.78,0.00016438,2]
[366389865,1750228247168,-2300.13,0.00016438,2]
[366389866,1750228247178,-490.0,0.00016438,2]
[366389867,1750228247187,-406.90098518,0.00016438,2]
[366389868,1750228247197,-490.0,0.00016438,2]
[366389869,1750228247207,-340.59198904,0.00016438,2]
[366389870,1750228247217,-490.0,0.00016438,2]
[366389871,1750228247226,-4919.38,0.00016438,2]
[366389872,1750228247236,-3928.17,0.00016438,2]
[366389873,1750228247246,-701.12,0.00016438,2]
[366389874,1750228247255,-1316.53,0.00016438,2]
[366389875,1750228247265,-490.0,0.00016438,2]
[366389876,1750228247275,-490.0,0.00016438,2]
[366389877,1750228247284,-490.0,0.00016438,2]
[366389878,1750228247294,-151.0,0.00016438,2]
[366389879,1750228247304,-243.180948,0.00016438,2]
[366389880,1750228247314,-904.86,0.00016438,2]
[366389881,1750228247324,-439.16760867,0.00016438,2]
[366389882,1750228247333,-151.0,0.00016438,2]
[366389883,1750228247343,-151.0,0.00016438,2]
[366389884,1750228247352,-531.77,0.00016438,2]
[366389885,1750228247362,-948.0,0.00016438,2]
[366389886,1750228247371,-151.0,0.00016438,2]
[366389887,1750228247381,-490.0,0.00016438,2]
[366389888,1750228247391,-5405.55,0.00016438,2]
[366389889,1750228247400,-500.0,0.00016438,2]
[366389890,1750228247409,-150.0,0.00016438,2]
[366389891,1750228247419,-490.0,0.00016438,2]
[366389892,1750228247428,-151.487683,0.00016438,2]
[366389893,1750228247438,-201.98796862,0.00016438,2]
[366389894,1750228247448,-2197.97,0.00016438,2]
[366389895,1750228247457,-4650.41,0.00016438,2]
[366389896,1750228247467,-500.0,0.00016438,2]
[366389897,1750228247477,-1635.79,0.00016438,2]
[366389898,1750228247487,-150.0,0.00016438,2]
[366389899,1750228247496,-621.18,0.00016438,2]
[366389900,1750228247506,-1724.27,0.00016438,2]
[366389901,1750228247515,-2741.66,0.00016438,2]
[366389902,1750228247524,-500.0,0.00016438,2]
[366389903,1750228247532,-490.0,0.00016438,2]
[366389904,1750228247541,-816.96,0.00016438,2]
[366389905,1750228247549,-1201.99,0.00016438,2]
[366389906,1750228247557,-150.0,0.00016438,2]
[366389907,1750228247566,-6106.75,0.00016438,2]
[366389908,1750228247576,-500.0,0.00016438,2]
[366389909,1750228247586,-490.0,0.00016438,2]
[366389910,1750228247595,-17594.43,0.00016438,2]
[366389911,1750228247605,-1330.77,0.00016438,2]
[366389912,1750228247614,-151.0,0.00016438,2]
[366389913,1750228247624,-2323.03,0.00016438,2]
[366389914,1750228247633,-151.0,0.00016438,2]
[366389915,1750228247642,-151.0,0.00016438,2]
[366389916,1750228247651,-151.0,0.00016438,2]
[366389917,1750228247662,-150.0,0.00016438,2]
[366389918,1750228247671,-151.0,0.00016438,2]
[366389919,1750228247681,-151.55347305,0.00016438,2]
[366389920,1750228247691,-151.0,0.00016438,2]
[366389921,1750228247700,-151.0,0.00016438,2]
[366389922,1750228247710,-151.0,0.00016438,2]
[366389923,1750228247719,-150.0,0.00016438,2]
[366389924,1750228247729,-151.0,0.00016438,2]
[366389925,1750228247739,-490.0,0.00016438,2]
[366389926,1750228247748,-254.270484,0.00016438,2]
[366389927,1750228247758,-2596.87,0.00016438,2]
[366389928,1750228247768,-500.0,0.00016438,2]
[366389929,1750228247777,-490.0,0.00016438,2]
[366389930,1750228247787,-1352.34,0.00016438,2]
[366389931,1750228247796,-4695.71,0.00016438,2]
[366389932,1750228247806,-500.0,0.00016438,2]
[366389933,1750228247816,-153.023233,0.00016438,2]
[366389934,1750228247825,-150.0,0.00016438,2]
[366389935,1750228247835,-176.442679,0.00016438,2]
[366389936,1750228247844,-1264.7,0.00016438,2]
[366389937,1750228247853,-906.91,0.00016438,2]
[366389938,1750228247863,-490.0,0.00016438,2]
[366389939,1750228247873,-490.0,0.00016438,2]
[366389940,1750228247883,-8109.14,0.00016438,2]
[366389941,1750228247893,-1003.3,0.00016438,2]
[366389942,1750228247902,-1364.12,0.00016438,2]
[366389943,1750228247911,-604.06,0.00016438,2]
[366389944,1750228247921,-1291.35,0.00016438,2]
[366389945,1750228247933,-490.0,0.00016438,2]
[366389946,1750228247944,-359.82840406,0.00016438,2]
[366389947,1750228247956,-490.0,0.00016438,2]
[366389948,1750228247966,-22297.49,0.00016438,2]
[366389949,1750228247977,-1599.41,0.00016438,2]
[366389950,1750228247987,-809.73,0.00016438,2]
[366389951,1750228247996,-151.0,0.00016438,2]
[366389952,1750228248006,-151.0,0.00016438,2]
[366389953,1750228248015,-3599.46,0.00016438,2]
[366389954,1750228248104,-151.0,0.00016438,2]
[366389955,1750228248113,-151.0,0.00016438,2]
[366389956,1750228248123,-151.0,0.00016438,2]
[366389957,1750228248132,-1337.85,0.00016438,2]
[366389958,1750228248141,-150.0,0.00016438,2]
[366389959,1750228248151,-151.0,0.00016438,2]
[366389960,1750228248160,-151.0,0.00016438,2]
[366389961,1750228248170,-1838.96,0.00016438,2]
[366389962,1750228248179,-151.0,0.00016438,2]
[366389963,1750228248188,-151.0,0.00016438,2]
[366389964,1750228248197,-490.0,0.00016438,2]
[366389965,1750228248207,-151.0,0.00016438,2]
[366389966,1750228248216,-3195.53,0.00016438,2]
[366389967,1750228248225,-269.243746,0.00016438,2]
[366389968,1750228248234,-953.34,0.00016438,2]
[366389969,1750228248243,-1247.37,0.00016438,2]
[366389970,1750228248253,-2070.27,0.00016438,2]
[366389971,1750228248263,-515.98,0.00016438,2]
[366389972,1750228248272,-6821.37,0.00016438,2]
[366389973,1750228248282,-490.0,0.00016438,2]
[366389974,1750228248291,-912.18,0.00016438,2]
[366389975,1750228248301,-1204.62,0.00016438,2]
[366389976,1750228248310,-490.0,0.00016438,2]
[366389977,1750228248320,-1644.07,0.00016438,2]
[366389978,1750228248330,-4677.6,0.00016438,2]
[366389979,1750228248339,-215.503249,0.00016438,2]
[366389980,1750228248349,-1298.54,0.00016438,2]
[366389981,1750228248359,-490.0,0.00016438,2]
[366389982,1750228248369,-730.79,0.00016438,2]
[366389983,1750228248379,-3491.36,0.00016438,2]
[366389984,1750228248388,-490.0,0.00016438,2]
[366389985,1750228248398,-1391.9,0.00016438,2]
[366389986,1750228248408,-490.0,0.00016438,2]
[366389987,1750228248418,-1743.86,0.00016438,2]
[366389988,1750228248427,-619.96,0.00016438,2]
[366389989,1750228248437,-14794.3,0.00016438,2]
[366389990,1750228248446,-490.0,0.00016438,2]
[366389991,1750228248456,-490.0,0.00016438,2]
[366389992,1750228248465,-151.0,0.00016438,2]
[366389993,1750228248475,-1317.23,0.00016438,2]
[366389994,1750228248485,-1871.26,0.00016438,2]
[366389995,1750228248495,-1298.76,0.00016438,2]
[366389996,1750228248505,-6713.86,0.00016438,2]
[366389997,1750228248514,-151.0,0.00016438,2]
[366389998,1750228248524,-151.0,0.00016438,2]
[366389999,1750228248534,-557.16449886,0.00016438,2]
[366390000,1750228248544,-8496.75,0.00016438,2]
[366390001,1750228248553,-151.0,0.00016438,2]
[366390002,1750228248563,-151.0,0.00016438,2]
[366390003,1750228248573,-151.0,0.00016438,2]
[366390004,1750228248583,-1204.36,0.00016438,2]
[366390005,1750228248592,-151.0,0.00016438,2]
[366390006,1750228248601,-151.0,0.00016438,2]
[366390007,1750228248611,-151.0,0.00016438,2]
[366390008,1750228248621,-151.0,0.00016438,2]
[366390009,1750228248631,-151.0,0.00016438,2]
[366390010,1750228248640,-1174.88,0.00016438,2]
[366390011,1750228248650,-151.0,0.00016438,2]
[366390012,1750228248659,-151.0,0.00016438,2]
[366390013,1750228248669,-490.0,0.00016438,2]
[366390014,1750228248679,-151.0,0.00016438,2]
[366390015,1750228248689,-604.04,0.00016438,2]
[366390016,1750228248699,-151.0,0.00016438,2]
[366390017,1750228248709,-300.242789,0.00016438,2]
[366390018,1750228248719,-490.0,0.00016438,2]
[366390019,1750228248729,-917.97,0.00016438,2]
[366390020,1750228248740,-853.87,0.00016438,2]
[366390021,1750228248750,-2061.05,0.00016438,2]
[366390022,1750228248759,-490.0,0.00016438,2]
[366390023,1750228248770,-505.67,0.00016438,2]
[366390024,1750228248780,-151.0,0.00016438,2]
[366390025,1750228248789,-150.0,0.00016438,2]
[366390026,1750228248799,-546.91,0.00016438,2]
[366390027,1750228248808,-1654.92,0.00016438,2]
[366390028,1750228248818,-949.12,0.00016438,2]
[366390029,1750228248828,-821.18,0.00016438,2]
[366390030,1750228248838,-496.54240382,0.00016438,2]
[366390031,1750228248848,-150.0,0.00016438,2]
[366390032,1750228248858,-3446.24,0.00016438,2]
[366390033,1750228248868,-1926.16,0.00016438,2]
[366390034,1750228248878,-465.691636,0.00016438,2]
[366390035,1750228248887,-490.0,0.00016438,2]
[366390036,1750228248897,-204.63360222,0.00016438,2]
[366390037,1750228248907,-1059.31,0.00016438,2]
[366390038,1750228248917,-1461.57,0.00016438,2]
[366390039,1750228248927,-150.0,0.00016438,2]
[366390040,1750228248939,-417.13208806,0.00016438,2]
[366390041,1750228248949,-3508.56,0.00016438,2]
[366390042,1750228248958,-152.187936,0.00016438,2]
[366390043,1750228248968,-500.0,0.00016438,2]
[366390044,1750228248978,-490.0,0.00016438,2]
[366390045,1750228248988,-490.0,0.00016438,2]
[366390046,1750228248998,-728.33,0.00016438,2]
[366390047,1750228249007,-151.0,0.00016438,2]
[366390048,1750228249018,-494.48471303,0.00016438,2]
[366390049,1750228249027,-151.0,0.00016438,2]
[366390050,1750228249037,-176.161001,0.00016438,2]
[366390051,1750228249046,-490.0,0.00016438,2]
[366390052,1750228249056,-153.2539826,0.00016438,2]
[366390053,1750228249065,-490.0,0.00016438,2]
[366390054,1750228249074,-2662.3,0.00016438,2]
[366390055,1750228249087,-1702.95,0.00016438,2]
[366390056,1750228249096,-490.0,0.00016438,2]
[366390057,1750228249106,-500.0,0.00016438,2]
[366390058,1750228249115,-2593.57,0.00016438,2]
[366390059,1750228249125,-1495.29,0.00016438,2]
[366390060,1750228249135,-150.0,0.00016438,2]
[366390061,1750228249145,-1776.09,0.00016438,2]
[366390062,1750228249154,-151.0,0.00016438,2]
[366390063,1750228249164,-150.0,0.00016438,2]
[366390064,1750228249174,-8590.2,0.00016438,2]
[366390065,1750228249183,-2261.65,0.00016438,2]
[366390066,1750228249193,-153.5086134,0.00016438,2]
[366390067,1750228249206,-1868.55,0.00016438,2]
[366390068,1750228249215,-555.21434392,0.00016438,2]
[366390069,1750228249224,-1642.36,0.00016438,2]
[366390070,1750228249233,-490.0,0.00016438,2]
[366390071,1750228249243,-150.89217555,0.00016438,2]
[366390072,1750228249252,-150.618867,0.00016438,2]
[366390073,1750228249262,-1860.01,0.00016438,2]
[366390074,1750228249272,-692.43,0.00016438,2]
[366390075,1750228249282,-151.0,0.00016438,2]
[366390076,1750228249292,-490.0,0.00016438,2]
[366390077,1750228249302,-151.605827,0.00016438,2]
[366390078,1750228249313,-490.0,0.00016438,2]
[366390079,1750228249323,-3807.85,0.00016438,2]
[366390080,1750228249334,-3395.25,0.00016438,2]
[366390081,1750228249343,-517.78582032,0.00016438,2]
[366390082,1750228249355,-2610.07,0.00016438,2]
[366390083,1750228249365,-434.20619035,0.00016438,2]
[366390084,1750228249374,-642.29,0.00016438,2]
[366390085,1750228249384,-490.0,0.00016438,2]
[366390086,1750228249393,-2889.51,0.00016438,2]
[366390087,1750228249403,-151.0,0.00016438,2]
[366390088,1750228249413,-490.0,0.00016438,2]
[366390089,1750228249423,-151.0,0.00016438,2]
[366390090,1750228249432,-151.0,0.00016438,2]
[366390091,1750228249442,-2071.04,0.00016438,2]
[366390092,1750228249452,-151.0,0.00016438,2]
[366390093,1750228249462,-180.185986,0.00016438,2]
[366390094,1750228249471,-685.37,0.00016438,2]
[366390095,1750228249481,-1744.39,0.00016438,2]
[366390096,1750228249491,-490.0,0.00016438,2]
[366390097,1750228249502,-490.0,0.00016438,2]
[366390098,1750228249512,-1207.61,0.00016438,2]
[366390099,1750228249522,-3173.6,0.00016438,2]
[366390100,1750228249532,-5597.88,0.00016438,2]
[366390101,1750228249542,-151.0,0.00016438,2]
[366390102,1750228249551,-1151.85,0.00016438,2]
[366390103,1750228249561,-151.0,0.00016438,2]
[366390104,1750228249571,-151.0,0.00016438,2]
[366390105,1750228249581,-153.971974,0.00016438,2]
[366390106,1750228249590,-151.0,0.00016438,2]
[366390107,1750228249599,-490.0,0.00016438,2]
[366390108,1750228249608,-151.161231,0.00016438,2]
[366390109,1750228249618,-12878.5,0.00016438,2]
[366390110,1750228249627,-490.0,0.00016438,2]
[366390111,1750228249637,-2422.37,0.00016438,2]
[366390112,1750228249646,-1446.99,0.00016438,2]
[366390113,1750228249655,-1418.79,0.00016438,2]
[366390114,1750228249665,-490.0,0.00016438,2]
[366390115,1750228249674,-6588.14,0.00016438,2]
[366390116,1750228249684,-500.0,0.00016438,2]
[366390117,1750228249693,-500.0,0.00016438,2]
[366390118,1750228249703,-500.0,0.00016438,2]
[366390119,1750228249712,-500.0,0.00016438,2]
[366390120,1750228249722,-500.0,0.00016438,2]
[366390121,1750228249731,-743.73,0.00016438,2]
[366390122,1750228249741,-2892.29,0.00016438,2]
[366390123,1750228249750,-1952.64,0.00016438,2]
[366390124,1750228249760,-1961.57,0.00016438,2]
[366390125,1750228249770,-490.0,0.00016438,2]
[366390126,1750228249779,-490.0,0.00016438,2]
[366390127,1750228249788,-8461.44,0.00016438,2]
[366390128,1750228249798,-9366.78,0.00016438,2]
[366390129,1750228249808,-1255.38,0.00016438,2]
[366390130,1750228249816,-490.0,0.00016438,2]
[366390131,1750228249824,-490.0,0.00016438,2]
[366390132,1750228249834,-767.12,0.00016438,2]
[366390133,1750228249843,-3395.91,0.00016438,2]
[366390134,1750228249852,-151.0,0.00016438,2]
[366390135,1750228249863,-287.171088,0.00016438,2]
[366390136,1750228249875,-957.43,0.00016438,2]
[366390137,1750228249884,-2403.38,0.00016438,2]
[366390138,1750228249893,-490.0,0.00016438,2]
[366390139,1750228249902,-490.0,0.00016438,2]
[366390140,1750228249911,-3179.37,0.00016438,2]
[366390141,1750228249921,-3012.65,0.00016438,2]
[366390142,1750228249934,-7898.84,0.00016438,2]
[366390143,1750228249943,-490.0,0.00016438,2]
[366390144,1750228249952,-490.0,0.00016438,2]
[366390145,1750228249961,-4677.88,0.00016438,2]
[366390146,1750228249972,-2333.91,0.00016438,2]
[366390147,1750228249982,-490.0,0.00016438,2]
[366390148,1750228249993,-490.0,0.00016438,2]
[366390149,1750228250004,-490.0,0.00016438,2]
[366390150,1750228250017,-1846.4,0.00016438,2]
[366390151,1750228250028,-448.2336784,0.00016438,2]
[366390152,1750228250037,-632.87,0.00016438,2]
[366390153,1750228250049,-2189.43,0.00016438,2]
[366390154,1750228250059,-714.33,0.00016438,2]
[366390155,1750228250069,-640.03,0.00016438,2]
[366390156,1750228250078,-2545.49,0.00016438,2]
[366390157,1750228250087,-831.52,0.00016438,2]
[366390158,1750228250097,-151.0,0.00016438,2]
[366390159,1750228250106,-204.240544,0.00016438,2]
[366390160,1750228250115,-151.0,0.00016438,2]
[366390161,1750228250124,-490.0,0.00016438,2]
[366390162,1750228250133,-151.96741564,0.00016438,2]
[366390163,1750228250142,-3883.95,0.00016438,2]
[366390164,1750228250151,-151.0,0.00016438,2]
[366390165,1750228250160,-151.0,0.00016438,2]
[366390166,1750228250170,-151.0,0.00016438,2]
[366390167,1750228250179,-165.63971983,0.00016438,2]
[366390168,1750228250188,-151.0,0.00016438,2]
[366390169,1750228250198,-151.0,0.00016438,2]
[366390170,1750228250208,-490.0,0.00016438,2]
[366390171,1750228250217,-151.0,0.00016438,2]
[366390172,1750228250227,-1399.79,0.00016438,2]
[366390173,1750228250237,-150.0,0.00016438,2]
[366390174,1750228250246,-152.03768,0.00016438,2]
[366390175,1750228250258,-500.0,0.00016438,2]
[366390176,1750228250268,-490.0,0.00016438,2]
[366390177,1750228250278,-1347.1,0.00016438,2]
[366390178,1750228250287,-880.23,0.00016438,2]
[366390179,1750228250297,-1384.45,0.00016438,2]
[366390180,1750228250306,-699.46,0.00016438,2]
[366390181,1750228250316,-490.0,0.00016438,2]
[366390182,1750228250326,-2519.36,0.00016438,2]
[366390183,1750228250335,-490.0,0.00016438,2]
[366390184,1750228250345,-490.0,0.00016438,2]
[366390185,1750228250354,-612.38033996,0.00016438,2]
[366390186,1750228250364,-8159.29,0.00016438,2]
[366390187,1750228250374,-1332.16,0.00016438,2]
[366390188,1750228250383,-1289.77,0.00016438,2]
[366390189,1750228250393,-490.0,0.00016438,2]
[366390190,1750228250403,-1532.53,0.00016438,2]
[366390191,1750228250413,-4272.05,0.00016438,2]
[366390192,1750228250422,-151.0,0.00016438,2]
[366390193,1750228250432,-151.0,0.00016438,2]
[366390194,1750228250442,-1104.49,0.00016438,2]
[366390195,1750228250451,-490.0,0.00016438,2]
[366390196,1750228250461,-490.0,0.00016438,2]
[366390197,1750228250470,-1650.39,0.00016438,2]
[366390198,1750228250479,-2075.66,0.00016438,2]
[366390199,1750228250489,-490.0,0.00016438,2]
[366390200,1750228250498,-10858.51,0.00016438,2]
[366390201,1750228250508,-4982.32,0.00016438,2]
[366390202,1750228250517,-490.0,0.00016438,2]
[366390203,1750228250526,-490.0,0.00016438,2]
[366390204,1750228250535,-490.0,0.00016438,2]
[366390205,1750228250545,-1003.5,0.00016438,2]
[366390206,1750228250555,-490.0,0.00016438,2]
[366390207,1750228250564,-2307.71,0.00016438,2]
[366390208,1750228250573,-490.0,0.00016438,2]
[366390209,1750228250583,-151.0,0.00016438,2]
[366390210,1750228250592,-270.072069,0.00016438,2]
[366390211,1750228250602,-269.5945995,0.00016438,2]
[366390212,1750228250611,-21780.39,0.00016438,2]
[366390213,1750228250620,-1057.56,0.00016438,2]
[366390214,1750228250630,-563.48,0.00016438,2]
[366390215,1750228250640,-490.0,0.00016438,2]
[366390216,1750228250649,-235.91201081,0.00016438,2]
[366390217,1750228250660,-962.03,0.00016438,2]
[366390218,1750228250671,-490.0,0.00016438,2]
[366390219,1750228250681,-490.0,0.00016438,2]
[366390220,1750228250691,-744.81,0.00016438,2]
[366390221,1750228250700,-490.0,0.00016438,2]
[366390222,1750228250709,-9938.58,0.00016438,2]
[366390223,1750228250719,-151.0,0.00016438,2]
[366390224,1750228250728,-151.0,0.00016438,2]
[366390225,1750228250738,-151.0,0.00016438,2]
[366390226,1750228250747,-490.0,0.00016438,2]
[366390227,1750228250756,-490.0,0.00016438,2]
[366390228,1750228250766,-151.0,0.00016438,2]
[366390229,1750228250775,-253.130086,0.00016438,2]
[366390230,1750228250786,-1571.35,0.00016438,2]
[366390231,1750228250795,-490.0,0.00016438,2]
[366390232,1750228250805,-2452.38,0.00016438,2]
[366390233,1750228250814,-807.79,0.00016438,2]
[366390234,1750228250822,-2516.32,0.00016438,2]
[366390235,1750228250831,-1281.0,0.00016438,2]
[366390236,1750228250841,-490.0,0.00016438,2]
[366390237,1750228250851,-4235.28,0.00016438,2]
[366390238,1750228250861,-499.69,0.00016438,2]
[366390239,1750228250870,-490.0,0.00016438,2]
[366390240,1750228250879,-490.0,0.00016438,2]
[366390241,1750228250889,-5518.56,0.00016438,2]
[366390242,1750228250898,-490.0,0.00016438,2]
[366390243,1750228250908,-490.0,0.00016438,2]
[366390244,1750228250918,-1399.49,0.00016438,2]
[366390245,1750228250930,-586.79,0.00016438,2]
[366390246,1750228250941,-541.81,0.00016438,2]
[366390247,1750228250950,-1191.44,0.00016438,2]
[366390248,1750228250959,-2418.61,0.00016438,2]
[366390249,1750228250969,-490.0,0.00016438,2]
[366390250,1750228250979,-495.84,0.00016438,2]
[366390251,1750228250990,-2746.37,0.00016438,2]
[366390252,1750228251000,-6921.38,0.00016438,2]
[366390253,1750228251011,-779.24,0.00016438,2]
[366390254,1750228251022,-1233.66,0.00016438,2]
[366390255,1750228251035,-1515.9,0.00016438,2]
[366390256,1750228251046,-490.0,0.00016438,2]
[366390257,1750228251056,-150.0,0.00016438,2]
[366390258,1750228251065,-966.36,0.00016438,2]
[366390259,1750228251074,-490.0,0.00016438,2]
[366390260,1750228251083,-7215.45,0.00016438,2]
[366390261,1750228251092,-490.0,0.00016438,2]
[366390262,1750228251102,-1844.69,0.00016438,2]
[366390263,1750228251111,-490.0,0.00016438,2]
[366390264,1750228251120,-166.63313128,0.00016438,2]
[366390265,1750228251129,-2277.35,0.00016438,2]
[366390266,1750228251139,-490.0,0.00016438,2]
[366390267,1750228251154,-580.05,0.00016438,2]
[366390268,1750228251164,-490.0,0.00016438,2]
[366390269,1750228251174,-490.0,0.00016438,2]
[366390270,1750228251183,-4060.86,0.00016438,2]
[366390271,1750228251193,-1771.79,0.00016438,2]
[366390272,1750228251202,-4060.86,0.00016438,2]
[366390273,1750228251212,-965.28,0.00016438,2]
[366390274,1750228251221,-4060.86,0.00016438,2]
[366390275,1750228251231,-4060.86,0.00016438,2]
[366390276,1750228251241,-4060.86,0.00016438,2]
[366390277,1750228251252,-490.0,0.00016438,2]
[366390278,1750228251262,-490.0,0.00016438,2]
[366390279,1750228251272,-490.0,0.00016438,2]
[366390280,1750228251281,-578.55,0.00016438,2]
[366390281,1750228251291,-1008.69230574,0.00016438,2]
[366390282,1750228251301,-490.0,0.00016438,2]
[366390283,1750228251311,-490.0,0.00016438,2]
[366390284,1750228251321,-1328.11,0.00016438,2]
[366390285,1750228251330,-492.77893752,0.00016438,2]
[366390286,1750228251340,-490.0,0.00016438,2]
[366390287,1750228251349,-490.0,0.00016438,2]
[366390288,1750228251359,-3396.77,0.00016438,2]
[366390289,1750228251368,-8180.45,0.00016438,2]
[366390290,1750228251378,-1599.47,0.00016438,2]
[366390291,1750228251387,-3783.99,0.00016438,2]
[366390292,1750228251397,-3401.94,0.00016438,2]
[366390293,1750228251407,-1385.41,0.00016438,2]
[366390294,1750228251417,-528.44,0.00016438,2]
[366390295,1750228251426,-490.0,0.00016438,2]
[366390296,1750228251436,-689.31,0.00016438,2]
[366390297,1750228251445,-1131.95,0.00016438,2]
[366390298,1750228251455,-2022.03,0.00016438,2]
[366390299,1750228251465,-490.0,0.00016438,2]
[366390300,1750228251474,-301.94,0.00016438,2]
[366390301,1750228251484,-503.75,0.00016438,2]
[366390302,1750228251494,-490.37,0.00016438,2]
[366390303,1750228251503,-301.14,0.00016438,2]
[366390304,1750228251512,-494.95,0.00016438,2]
[366390305,1750228251522,-150.22613624,0.00016438,2]
[366390306,1750228251531,-159.11587244,0.00016447,2]
[366390307,1750228251541,-800.0,0.00016448,2]
[366390308,1750228251550,-956.73897753,0.00016452,2]
[366390309,1750228251560,-1372.41502703,0.00016454,2]
[366390310,1750228251570,-217.94031613,0.00016465,2]
[366390311,1750228251579,-202.79560054,0.00016465,2]
[366390312,1750228251589,-150.0,0.00016465,2]
[366390313,1750228251598,-500.0,0.00016465,2]
[366390314,1750228251607,-150.0,0.00016465,2]
[366390315,1750228251617,-150.0,0.00016465,2]
[366390316,1750228251627,-500.0,0.00016465,2]
[366390317,1750228251639,-236.30738567,0.00016465,2]
[366390318,1750228251649,-500.0,0.00016465,2]
[366390319,1750228251659,-150.0,0.00016465,2]
[366390320,1750228251668,-500.0,0.00016465,2]
[366390321,1750228251677,-150.0,0.00016465,2]
[366390322,1750228251687,-500.0,0.00016465,2]
[366390323,1750228251696,-152.6954206,0.00016465,2]
[366390324,1750228251706,-222.60531671,0.00016465,2]
[366390325,1750228251715,-500.0,0.00016465,2]
[366390326,1750228251725,-500.0,0.00016465,2]
[366390327,1750228251734,-150.0,0.00016465,2]
[366390328,1750228251743,-200.3534713,0.00016465,2]
[366390329,1750228251753,-150.0,0.00016465,2]
[366390330,1750228251762,-150.0,0.00016465,2]
[366390331,1750228251772,-150.0,0.00016465,2]
[366390332,1750228251781,-500.0,0.00016465,2]
[366390333,1750228251791,-500.0,0.00016465,2]
[366390334,1750228251800,-156.54496774,0.00016465,2]
[366390335,1750228251809,-150.0,0.00016465,2]
[366390336,1750228251819,-500.0,0.00016465,2]
[366390337,1750228251829,-150.0,0.00016465,2]
[366390338,1750228251846,-195.15,0.00016467,2]